bitfinex-derivatives/quotes_SOLF0:USTF0_20250131
["timestamp","ask_amount","ask_price","bid_price","bid_amount"]
[1738335632609,17.00730285,237.09,236.98,0.03149244]
[1738335632918,4.2183,237.05,236.99,4.2192]
[1738335633117,4.2183,237.05,236.98,0.03149244]
[1738335633418,105.38159609,237.12,236.93,5.764656]
[1738335633816,18.4927241,237.09,236.9,2.8268]
[1738335634019,102.52159609,237.12,237.03,18.4927241]
[1738335634020,101.16079609,237.12,237.03,18.4927241]
[1738335634615,0.02833199,237.1,237.05,0.03094149]
[1738335634817,17.03563484,237.1,237.08,4.17299192]
[1738335635016,17.03563484,237.1,237.05,0.03094149]
[1738335635622,17.03563484,237.1,237.09,4.2176]
[1738335636322,10.57553484,237.1,237.09,4.2176]
[1738335636523,3.484e-05,237.1,237.09,4.2176]
[1738335636723,45.62399073,237.12,237.11,4.2172]
[1738335637320,2.7834,237.25,237.15,4.2165]
[1738335637618,2.7834,237.25,237.11,18.4927241]
[1738335637920,2.7834,237.25,237.19,4.2158]
[1738335638219,1.3417,237.25,237.16,0.02918169]
[1738335638421,1.3417,237.25,237.21,4.2153]
[1738335638825,1.3417,237.25,237.16,0.02918169]
[1738335639018,1.3825,237.3,237.16,0.02918169]
[1738335639225,45.62399073,237.31,237.23,18.4927241]
[1738335639826,45.62399073,237.31,237.27,4.2144]
[1738335640019,45.62399073,237.31,237.25,0.03033596]
[1738335640321,45.62399073,237.31,237.29,4.214]
[1738335641218,2.7242,237.38,237.25,0.03033596]
[1738335641425,2.7242,237.38,237.27,18.4927241]
[1738335641818,2.7242,237.38,237.3,4.2138]
[1738335642025,2.7242,237.38,237.3,0.02765483]
[1738335642621,2.7242,237.38,237.32,4.2133]
[1738335642825,18.4927241,237.48,237.31,18.4927241]
[1738335643029,2.86,237.45,237.31,18.4927241]
[1738335643226,2.86,237.45,237.34,4.213]
[1738335643523,2.86,237.45,237.37,0.03175271]
[1738335645627,18.4927241,237.44,237.23,18.4927241]
[1738335645926,2.86,237.45,237.18,1.4297]
[1738335645927,18.4927241,237.36,237.19,18.4927241]
[1738335646124,4.2136,237.32,237.23,4.2151]
[1738335646619,2.6611,237.35,237.19,18.4927241]
[1738335646823,4.214,237.29,237.25,0.03113411]
[1738335647324,0.0317382,237.3,237.25,0.03113411]
[1738335647622,0.0317382,237.3,237.11,18.4927241]
[1738335647820,4.2151,237.23,237.15,4.2164]
[1738335648017,18.4927241,237.32,237.11,18.4927241]
[1738335648220,18.4927241,237.28,237.11,18.4927241]
[1738335648529,4.2153,237.22,237.11,18.4927241]
[1738335648923,0.02894601,237.19,237.14,0.02717561]
[1738335650125,4.24474601,237.19,237.14,0.02717561]
[1738335650425,0.02894601,237.19,237.14,0.02717561]
[1738335650626,4.216,237.18,237.14,0.02717561]
[1738335650921,0.02894601,237.19,237.14,0.02717561]
[1738335651727,4.216,237.18,237.14,0.02717561]
[1738335651929,0.02894601,237.19,237.14,0.02717561]
[1738335652729,4.24484601,237.19,237.14,0.02717561]
[1738335652924,0.02894601,237.19,237.14,0.02717561]
[1738335653121,0.02894601,237.19,237.14,4.24377561]
[1738335653431,4.24474601,237.19,237.14,0.02717561]
[1738335653626,0.02894601,237.19,237.14,0.02717561]
[1738335653825,0.02894601,237.19,237.11,4.3961347]
[1738335654832,0.02894601,237.19,237.07,18.4927241]
[1738335655032,4.2167,237.14,237.07,18.4927241]
[1738335655232,1.3892,237.2,237.13,0.03151778]
[1738335655433,0.02961588,237.13,237.09,4.2175]
[1738335655732,4.2162,237.17,237.09,4.2175]
[1738335655929,1.3892,237.2,237.09,4.24963435]
[1738335656130,0.02720635,237.13,237.09,4.24963435]
[1738335656528,0.02720635,237.13,237.09,0.03213435]
[1738335657339,4.2174,237.1,237.09,0.03213435]
[1738335658134,0.02720635,237.13,236.95,18.4927241]
[1738335658337,1.3889,237.12,236.95,18.4927241]
[1738335658933,4.2183,237.05,236.95,18.4927241]
[1738335659137,2.86,237.09,236.95,18.4927241]
[1738335659539,0.02988292,237.02,236.98,0.03188659]
[1738335660343,0.02988292,237.02,237.0,4.219]
[1738335660543,0.02988292,237.02,236.98,0.03188659]
[1738335660743,0.02988292,237.02,236.99,18.4927241]
[1738335660942,0.02988292,237.02,237.0,4.2192]
[1738335661138,0.02988292,237.02,236.98,0.03188659]
[1738335661543,0.02988292,237.02,236.99,4.2193]
[1738335661744,0.02988292,237.02,236.98,0.03188659]
[1738335661941,0.02988292,237.02,236.99,18.4927241]
[1738335662142,4.2171,237.12,237.07,4.2179]
[1738335662339,1.3662,237.19,237.03,18.4927241]
[1738335662644,2.86,237.18,237.07,18.4927241]
[1738335662847,7.076,237.18,237.07,18.4927241]
[1738335663039,8.58204771,237.2,237.07,18.4927241]
[1738335663240,8.58204771,237.2,237.11,18.4927241]
[1738335663446,0.02988912,237.14,237.11,18.4927241]
[1738335663746,0.02988912,237.14,237.13,4.2168]
[1738335666346,0.02988912,237.14,237.1,0.03088288]
[1738335666546,4.24658912,237.14,237.1,0.03088288]
[1738335667249,0.02988912,237.14,237.1,0.03088288]
[1738335667550,0.02988912,237.14,237.11,18.4927241]
[1738335667749,0.02988912,237.14,237.13,4.2168]
[1738335669252,2.86,237.25,237.19,4.2158]
[1738335669950,4.2147,237.25,237.19,4.2158]
[1738335670251,83.48,237.28,237.15,18.4927241]
[1738335670451,0.02848041,237.24,237.2,0.02760713]
[1738335670854,0.02848041,237.24,237.23,4.2151]
[1738335672954,0.02848041,237.24,237.23,22.7078241]
[1738335673149,2.86,237.36,237.29,4.2138]
[1738335673359,1.3637,237.39,237.23,18.4927241]
[1738335673849,1.3637,237.39,237.27,18.4927241]
[1738335674357,0.02810882,237.35,237.31,0.03017603]
[1738335675055,0.02810882,237.35,237.27,5.86245804]
[1738335675256,0.02810882,237.35,237.33,4.2133]
[1738335675451,0.02810882,237.35,237.27,5.86245804]
[1738335675653,0.02810882,237.35,237.34,4.2131]
[1738335677059,0.02810882,237.35,237.32,4.24274381]
[1738335677461,0.02810882,237.35,237.32,0.02934381]
[1738335678259,0.02810882,237.35,237.33,4.2133]
[1738335678460,0.02810882,237.35,237.32,0.02934381]
[1738335679052,0.02810882,237.35,237.33,4.2133]
[1738335679761,0.02810882,237.35,237.34,4.2131]
[1738335684667,0.02810882,237.35,237.32,0.02934381]
[1738335685270,4.24110882,237.35,237.32,0.02934381]
[1738335685958,4.2132,237.34,237.32,0.02934381]
[1738335686166,0.02810882,237.35,237.18,2.8403]
[1738335686365,2.86,237.34,237.24,4.2148]
[1738335687067,2.7967,237.35,237.11,18.4927241]
[1738335687068,4.2143,237.28,237.11,18.4927241]
[1738335687260,2.86,237.3,237.19,18.4927241]
[1738335687465,0.03116848,237.25,237.24,4.2149]
[1738335689258,2.86,237.37,237.31,4.2136]
[1738335689466,18.4927241,237.44,237.27,18.4927241]
[1738335689768,2.86,237.43,237.31,18.4927241]
[1738335689969,5.7075,237.45,237.31,18.4927241]
[1738335690265,4.2117,237.42,237.36,4.2126]
[1738335690467,0.03097164,237.4,237.36,0.02776785]
[1738335691068,0.03097164,237.4,237.39,4.2122]
[1738335693173,0.03097164,237.4,237.36,0.02776785]
[1738335693772,0.03097164,237.4,237.38,4.2124]
[1738335694860,0.03097164,237.4,237.36,18.52049195]
[1738335694861,0.03097164,237.4,237.39,4.2122]
[1738335695065,0.03097164,237.4,237.36,0.02776785]
[1738335695470,0.03097164,237.4,237.36,4.24046785]
[1738335695769,0.03097164,237.4,237.28,8.62378226]
[1738335696265,0.03097164,237.4,237.32,18.4927241]
[1738335696570,5.7075,237.51,237.32,18.4927241]
[1738335696871,2.8475,237.51,237.36,18.4927241]
[1738335697068,0.03105786,237.44,237.36,18.4927241]
[1738335697268,0.03105786,237.44,237.41,0.02902154]
[1738335699665,4.2115,237.43,237.41,0.02902154]
[1738335699968,0.03105786,237.44,237.41,0.02902154]
[1738335700268,4.2115,237.43,237.41,0.02902154]
[1738335701070,0.03105786,237.44,237.41,0.02902154]
[1738335701569,0.03105786,237.44,237.42,4.2117]
[1738335702072,0.03105786,237.44,237.41,0.02902154]
[1738335702569,4.2123,237.39,237.33,4.2132]
[1738335702769,18.4927241,237.44,237.33,4.2132]
[1738335702964,18.4927241,237.44,237.25,2.7767]
[1738335703170,18.4927241,237.44,237.3,4.2137]
[1738335703470,18.4927241,237.44,237.25,2.7767]
[1738335703669,4.2129,237.36,237.31,4.2135]
[1738335703862,0.02967384,237.37,237.32,0.03019372]
[1738335704473,4.2133,237.33,237.32,0.03019372]
[1738335705072,0.02967384,237.37,237.32,0.03019372]
[1738335706573,4.213,237.35,237.32,0.03019372]
[1738335706776,0.02967384,237.37,237.32,0.03019372]
[1738335707673,0.02967384,237.37,237.36,4.2128]
[1738335712175,8.55087413,237.5,237.36,18.4927241]
[1738335712480,2.86,237.51,237.36,18.4927241]
[1738335712777,2.86,237.51,237.43,4.2114]
[1738335713175,5.6189,237.52,237.36,18.4927241]
[1738335713479,0.03227531,237.49,237.45,4.23823172]
[1738335713779,0.03227531,237.49,237.45,0.02713172]
[1738335715174,0.03227531,237.49,237.48,4.2106]
[1738335715881,0.03227531,237.49,237.44,8.62419715]
[1738335716872,0.03227531,237.49,237.48,4.2106]
[1738335718583,1.4626,237.63,237.57,4.209]
[1738335719179,1.4626,237.63,237.49,4.0701]
[1738335719483,4.2082,237.62,237.49,4.0701]
[1738335719680,1.4626,237.63,237.49,4.0701]
[1738335719982,0.02800076,237.58,237.56,4.2091]
[1738335720172,0.02800076,237.58,237.54,0.03199997]
[1738335720978,4.2091,237.57,237.54,0.03199997]
[1738335721176,0.02800076,237.58,237.54,0.03199997]
[1738335721583,4.2091,237.57,237.54,0.03199997]
[1738335721778,0.02800076,237.58,237.54,0.03199997]
[1738335722083,0.02800076,237.58,237.57,4.209]
[1738335724677,2.84,237.72,237.56,18.4927241]
[1738335724884,21.3327241,237.72,237.55,1.4453]
[1738335725085,1.4483,237.7,237.53,1.4279]
[1738335725389,18.4927241,237.68,237.53,1.4279]
[1738335725787,0.02982614,237.63,237.58,0.02808516]
[1738335726185,0.02982614,237.63,237.62,4.2081]
[1738335726488,0.02982614,237.63,237.58,0.02808516]
[1738335727688,0.02982614,237.63,237.6,4.2085]
[1738335727881,0.02982614,237.63,237.58,0.02808516]
[1738335730790,0.02982614,237.63,237.6,4.2085]
[1738335731591,4.23782614,237.63,237.58,4.23678516]
[1738335731890,0.02982614,237.63,237.58,0.02808516]
[1738335732784,0.02982614,237.63,237.62,4.2081]
[1738335733382,1.398,237.76,237.62,4.2081]
[1738335733583,9.8519,237.79,237.65,18.4927241]
[1738335733983,5.6339,237.79,237.65,18.4927241]
[1738335734187,4.2057,237.76,237.65,18.4927241]
[1738335734390,5.6339,237.79,237.61,18.4927241]
[1738335734586,4.2067,237.71,237.58,1.37]
[1738335734793,0.02911711,237.69,237.65,0.0300274]
[1738335736496,0.02911711,237.69,237.68,4.2071]
[1738335738294,2.7939,237.79,237.65,18.5227515]
[1738335738795,4.2432,237.84,237.72,4.2062]
[1738335739095,2.7623,237.83,237.65,18.4927241]
[1738335739296,4.205,237.8,237.69,4.2068]
[1738335739490,2.7623,237.83,237.72,0.02947286]
[1738335740697,2.7623,237.83,237.73,4.2061]
[1738335741099,4.205,237.8,237.74,4.2059]
[1738335741500,2.7623,237.83,237.72,0.02947286]
[1738335741696,4.2052,237.79,237.72,0.02947286]
[1738335741891,2.7623,237.83,237.72,0.02947286]
[1738335742097,18.4927241,237.81,237.72,0.02947286]
[1738335742801,18.4927241,237.73,237.52,18.4927241]
[1738335743003,2.814,237.72,237.52,18.4927241]
[1738335743205,4.2066,237.71,237.62,4.2081]
[1738335743405,4.2066,237.71,237.56,18.4927241]
[1738335743605,2.84,237.8,237.6,18.4927241]
[1738335743905,0.02947286,237.72,237.68,0.02658008]
[1738335746807,0.02947286,237.72,237.71,4.2066]
[1738335748808,7.286e-05,237.72,237.71,4.2066]
[1738335749408,101.60291032,237.87,237.69,1.3872]
[1738335749608,101.60291032,237.87,237.72,18.4927241]
[1738335750009,4.2045,237.83,237.72,18.4927241]
[1738335750606,4.2045,237.83,237.75,0.03057212]
[1738335751104,101.60291032,237.87,237.75,0.03057212]
[1738335751105,4.2043,237.84,237.78,4.2053]
[1738335751310,101.60291032,237.87,237.69,1.3872]
[1738335751511,101.60291032,237.87,237.79,0.02956065]
[1738335752212,4.205,237.8,237.79,0.02956065]
[1738335752617,101.60291032,237.87,237.79,0.02956065]
[1738335753316,104.44291032,237.87,237.79,0.02956065]
[1738335753512,4.2046,237.82,237.79,0.02956065]
[1738335754118,21.3327241,237.88,237.79,0.02956065]
[1738335755421,4.2043,237.84,237.8,4.2049]
[1738335756116,4.2044,237.83,237.8,4.2049]
[1738335756420,2.84,237.87,237.79,0.02956065]
[1738335756621,1.3761,237.82,237.69,1.3872]
[1738335756822,4.2053,237.79,237.75,4.2058]
[1738335757119,1.3761,237.82,237.69,1.3872]
[1738335757620,1.3761,237.82,237.64,18.4927241]
[1738335757819,0.02956065,237.78,237.73,0.0285808]
[1738335758016,4.2059,237.75,237.73,0.0285808]
[1738335758219,0.02956065,237.78,237.73,0.0285808]
[1738335758415,18.4927241,237.76,237.56,18.4927241]
[1738335758622,18.4927241,237.72,237.56,18.4927241]
[1738335759223,4.2069,237.69,237.64,4.2077]
[1738335759426,18.4927241,237.72,237.64,4.2077]
[1738335759624,4.2073,237.67,237.64,0.03159236]
[1738335760224,0.0275906,237.69,237.64,0.03159236]
[1738335760427,18.4927241,237.67,237.48,18.4927241]
[1738335760724,4.2079,237.64,237.53,4.2096]
[1738335760922,18.4927241,237.67,237.48,19.9050241]
[1738335761431,4.2077,237.65,237.48,19.9050241]
[1738335761627,0.03098273,237.6,237.55,0.03235798]
[1738335761928,4.208,237.63,237.51,4.21]
[1738335762227,0.03144503,237.6,237.55,0.03234666]
[1738335762623,18.4927241,237.67,237.48,19.9050241]
[1738335762827,0.02935871,237.6,237.55,0.02916433]
[1738335763223,0.02935871,237.6,237.56,4.2092]
[1738335763427,0.02935871,237.6,237.55,0.02916433]
[1738335763829,0.02935871,237.6,237.58,4.2088]
[1738335766433,0.02935871,237.6,237.56,4.2091]
[1738335766733,0.02935871,237.6,237.55,0.02916433]
[1738335766935,0.02935871,237.6,237.56,4.2092]
[1738335767432,0.02935871,237.6,237.55,0.02916433]
[1738335768333,4.2092,237.57,237.55,0.02916433]
[1738335768826,0.02935871,237.6,237.55,0.02916433]
[1738335769037,4.2091,237.57,237.55,0.02916433]
[1738335769635,0.02935871,237.6,237.55,0.02916433]
[1738335770334,0.02935871,237.6,237.59,4.2087]
[1738335771533,0.02935871,237.6,237.57,4.209]
[1738335771933,0.02935871,237.6,237.55,0.02916433]
[1738335772235,0.02935871,237.6,237.58,4.2087]
[1738335772436,0.02935871,237.6,237.55,0.02916433]
[1738335772635,0.02935871,237.6,237.55,4.23836433]
[1738335772837,0.02935871,237.6,237.55,0.02916433]
[1738335774029,0.02935871,237.6,237.58,4.2088]
[1738335774635,0.02935871,237.6,237.59,4.2087]
[1738335779246,0.02935871,237.6,237.57,4.2089]
[1738335779445,0.02935871,237.6,237.55,0.02916433]
[1738335780946,2.91295871,237.6,237.55,0.02916433]
[1738335781144,4.2092,237.56,237.55,0.02916433]
[1738335782447,1.342,237.59,237.55,0.02916433]
[1738335783442,4.2092,237.56,237.55,0.02916433]
[1738335783744,0.02935871,237.6,237.55,0.02916433]
[1738335785042,0.02935871,237.6,237.59,4.2087]
[1738335786141,0.02935871,237.6,237.57,4.2089]
[1738335786343,0.02935871,237.6,237.55,0.02916433]
[1738335788448,4.2092,237.56,237.55,0.02916433]
[1738335788752,2.85155871,237.6,237.55,0.02916433]
[1738335788947,0.02935871,237.6,237.55,0.02916433]
[1738335789347,0.02935871,237.6,237.56,4.2091]
[1738335789547,0.02935871,237.6,237.55,0.02916433]
[1738335790648,0.02935871,237.6,237.55,4.23846433]
[1738335790849,0.02935871,237.6,237.55,0.02916433]
[1738335791251,0.02935871,237.6,237.59,4.2087]
[1738335793151,4.2065,237.72,237.66,4.2074]
[1738335793648,1.3875,237.74,237.63,4.2078]
[1738335793946,1.3875,237.74,237.56,18.4927241]
[1738335794251,0.02947056,237.67,237.63,0.03117337]
[1738335796450,0.02947056,237.67,237.65,4.2076]
[1738335796753,0.02947056,237.67,237.63,0.03117337]
[1738335797456,0.02947056,237.67,237.64,4.2078]
[1738335797655,0.02947056,237.67,237.63,0.03117337]
[1738335798058,0.02947056,237.67,237.64,4.2076]
[1738335798253,0.02947056,237.67,237.63,0.03117337]
[1738335798858,0.02947056,237.67,237.66,4.2074]
[1738335799458,91.97893872,237.75,237.65,11.47574748]
[1738335799753,83.32,237.75,237.65,11.47574748]
[1738335799947,83.32,237.75,237.71,4.2066]
[1738335800553,83.34866462,237.75,237.71,4.23408999]
[1738335800758,83.34866462,237.75,237.71,0.02748999]
[1738335800759,87.55456462,237.75,237.71,0.02748999]
[1738335801053,0.02866462,237.75,237.71,0.02748999]
[1738335801257,0.02866462,237.75,237.74,4.206]
[1738335804556,6.462e-05,237.75,237.74,4.206]
[1738335810059,6.462e-05,237.75,237.74,4.206]
[1738335812765,6.462e-05,237.75,237.71,0.02748999]
[1738335814062,6.462e-05,237.75,237.73,4.2062]
[1738335814269,6.462e-05,237.75,237.71,0.02748999]
[1738335815871,6.462e-05,237.75,237.71,4.23398999]
[1738335816572,6.462e-05,237.75,237.71,0.02748999]
[1738335816772,4.2064,237.72,237.71,0.02748999]
[1738335816971,6.462e-05,237.75,237.71,0.02748999]
[1738335817267,4.2062,237.73,237.71,0.02748999]
[1738335817672,4.2064,237.72,237.71,0.02748999]
[1738335817872,6.462e-05,237.75,237.64,4.2076]
[1738335818273,4.2067,237.71,237.59,18.35148648]
[1738335818774,4.2067,237.71,237.65,4.2076]
[1738335819070,0.02979453,237.7,237.66,0.03200932]
[1738335819273,4.23659453,237.7,237.66,0.03200932]
[1738335819572,0.02979453,237.7,237.66,0.03200932]
[1738335821466,11.4742359,237.68,237.53,2.6435]
[1738335822068,11.4742359,237.71,237.58,11.4742359]
[1738335822276,2.8192,237.72,237.58,11.4742359]
[1738335822773,0.03094769,237.67,237.63,0.02807357]
[1738335823372,0.03094769,237.67,237.66,4.2074]
[1738335827776,4.2058,237.76,237.64,11.4742359]
[1738335827974,11.4742359,237.8,237.65,2.7797]
[1738335828278,4.2055,237.78,237.67,11.4742359]
[1738335828478,4.2055,237.78,237.72,4.2062]
[1738335828679,11.4742359,237.8,237.67,11.4742359]
[1738335828873,15.6793359,237.8,237.67,11.4742359]
[1738335829176,0.03085616,237.76,237.73,4.2061]
[1738335829673,0.03085616,237.76,237.71,0.03182875]
[1738335829868,0.03085616,237.76,237.46,71.53616455]
[1738335829869,11.4742359,237.74,237.57,2.68]
[1738335830073,11.4742359,237.71,237.57,2.68]
[1738335830371,1.3454,237.82,237.64,11.4742359]
[1738335830372,11.4742359,237.8,237.64,11.4742359]
[1738335830774,11.4742359,237.77,237.64,11.4742359]
[1738335831081,11.50308817,237.74,237.7,0.03109732]
[1738335831279,11.50308817,237.74,237.57,14.1542359]
[1738335831479,11.4742359,237.74,237.7,0.02685518]
[1738335831883,4.2062,237.73,237.66,4.2074]
[1738335832074,0.0292366,237.74,237.7,0.03232079]
[1738335832278,11.4742359,237.8,237.63,11.4742359]
[1738335832482,11.4742359,237.8,237.7,0.02668692]
[1738335832483,0.02830789,237.74,237.7,0.02668692]
[1738335832682,0.02830789,237.74,237.72,4.2062]
[1738335833081,0.02830789,237.74,237.73,4.2062]
[1738335833988,0.02830789,237.74,237.71,4.2064]
[1738335834189,0.02830789,237.74,237.7,0.02668692]
[1738335834688,0.02830789,237.74,237.7,4.23328692]
[1738335835591,0.02830789,237.74,237.7,0.02668692]
[1738335836281,0.02830789,237.74,237.73,4.2062]
[1738335838592,0.02830789,237.74,237.7,0.02668692]
[1738335839085,11.50254379,237.74,237.7,0.02668692]
[1738335840591,15.6808359,237.71,237.7,0.02668692]
[1738335840794,11.4742359,237.71,237.56,1.3236]
[1738335840993,2.86830789,237.74,237.56,1.3236]
[1738335840994,11.4742359,237.67,237.56,1.3236]
[1738335841293,11.4742359,237.64,237.51,11.4742359]
[1738335841594,4.2083,237.61,237.53,4.2097]
[1738335841794,11.4742359,237.61,237.49,2.7512]
[1738335841989,0.02944866,237.59,237.55,0.02958784]
[1738335842193,11.4742359,237.58,237.55,0.02958784]
[1738335843092,11.4742359,237.58,237.44,1.4095]
[1738335843287,11.4742359,237.55,237.44,1.4095]
[1738335843495,4.2098,237.53,237.39,11.4742359]
[1738335843793,11.4742359,237.55,237.39,11.4742359]
[1738335844192,0.03047135,237.49,237.45,0.03103635]
[1738335844589,0.03047135,237.49,237.45,4.24213635]
[1738335844785,0.03047135,237.49,237.45,0.03103635]
[1738335847689,0.03047135,237.49,237.32,18.39301642]
[1738335848094,18.39301642,237.51,237.42,4.2117]
[1738335848295,18.39301642,237.51,237.32,18.39301642]
[1738335848495,18.39301642,237.47,237.29,2.7959]
[1738335848696,2.84,237.47,237.32,18.39301642]
[1738335848898,0.02866536,237.44,237.39,0.03058088]
[1738335849096,0.02866536,237.44,237.43,4.2115]
[1738335849396,0.02866536,237.44,237.39,0.03058088]
[1738335849791,0.02866536,237.44,237.43,4.2115]
[1738335851889,2.822,237.58,237.46,4.211]
[1738335852093,2.822,237.58,237.41,18.39301642]
[1738335852294,4.2096,237.55,237.4,1.3563]
[1738335853199,0.02840607,237.5,237.46,4.2108]
[1738335853400,0.02840607,237.5,237.45,0.0279467]
[1738335855003,0.02840607,237.5,237.48,4.2105]
[1738335855404,0.02840607,237.5,237.49,4.2104]
[1738335856098,6.07e-06,237.5,237.49,4.2104]
[1738335856305,4.2083,237.61,237.55,4.2094]
[1738335856702,2.84,237.66,237.48,18.39301642]
[1738335857497,0.0290905,237.59,237.55,0.02817131]
[1738335857898,4.2092,237.57,237.55,0.02817131]
[1738335858098,0.0290905,237.59,237.55,0.02817131]
[1738335859700,4.2092,237.57,237.55,0.02817131]
[1738335860504,0.0290905,237.59,237.55,0.02817131]
[1738335860698,0.0290905,237.59,237.56,4.2092]
[1738335861099,0.0290905,237.59,237.58,4.2089]
[1738335861307,18.39301642,237.76,237.56,18.39301642]
[1738335861516,4.0435,237.75,237.6,18.39301642]
[1738335862707,0.0316603,237.7,237.65,0.02995774]
[1738335863100,0.0316603,237.7,237.69,4.2068]
[1738335864400,4.2049,237.81,237.68,18.39301642]
[1738335864606,4.2049,237.81,237.74,4.206]
[1738335864807,2.84,237.84,237.68,18.39301642]
[1738335865211,4.2047,237.82,237.68,18.39301642]
[1738335865601,2.84,237.84,237.68,18.39301642]
[1738335865804,0.03086966,237.77,237.73,0.02826543]
[1738335866009,0.03086966,237.77,237.74,4.206]
[1738335866307,0.03086966,237.77,237.73,0.02826543]
[1738335866804,0.03086966,237.77,237.73,4.23436543]
[1738335869205,0.03086966,237.77,237.73,0.02826543]
[1738335871113,4.2057,237.76,237.73,0.02826543]
[1738335871306,0.03086966,237.77,237.73,0.02826543]
[1738335872211,4.206,237.74,237.73,0.02826543]
[1738335872714,0.03086966,237.77,237.73,0.02826543]
[1738335873414,18.42388608,237.77,237.73,0.02826543]
[1738335874113,18.42388608,237.77,237.58,2.7491]
[1738335874310,18.39301642,237.7,237.58,2.7491]
[1738335874615,4.2075,237.66,237.58,2.7491]
[1738335874916,18.39301642,237.7,237.58,2.7491]
[1738335875110,0.02707879,237.64,237.6,0.02685201]
[1738335877013,0.02707879,237.64,237.63,4.208]
[1738335877208,7.879e-05,237.64,237.63,4.208]
[1738335878717,2.8257,237.8,237.61,2.7855]
[1738335878917,2.8257,237.8,237.64,18.39301642]
[1738335879318,2.8257,237.8,237.76,4.2057]
[1738335879524,4.2422,237.83,237.76,4.2057]
[1738335879818,4.2422,237.83,237.68,18.39301642]
[1738335879819,4.2049,237.81,237.68,18.39301642]
[1738335880119,1.4022,237.83,237.68,18.39301642]
[1738335880318,0.03179466,237.77,237.69,1.3835]
[1738335880514,0.03179466,237.77,237.73,4.2061]
[1738335880719,0.03179466,237.77,237.72,0.02811412]
[1738335883421,0.03179466,237.77,237.74,4.2059]
[1738335883721,0.03179466,237.77,237.72,0.02811412]
[1738335883922,0.03179466,237.77,237.73,4.2062]
[1738335884121,0.03179466,237.77,237.72,0.02811412]
[1738335886423,0.03179466,237.77,237.75,4.2058]
[1738335887030,0.03179466,237.77,237.72,0.02811412]
[1738335887322,0.03179466,237.77,237.75,4.2058]
[1738335887524,0.03179466,237.77,237.72,0.02811412]
[1738335888123,0.03179466,237.77,237.76,4.2057]
[1738335894722,0.03179466,237.77,237.75,4.2058]
[1738335895030,0.03179466,237.77,237.72,0.02811412]
[1738335895529,0.03179466,237.77,237.73,4.206]
[1738335895728,0.03179466,237.77,237.72,0.02811412]
[1738335896129,0.03179466,237.77,237.76,4.2057]
[1738335897734,0.03179466,237.77,237.75,4.2058]
[1738335898130,0.03179466,237.77,237.72,0.02811412]
[1738335898331,0.03179466,237.77,237.76,4.2057]
[1738335899229,0.03179466,237.77,237.75,4.2058]
[1738335899429,0.03179466,237.77,237.72,0.02811412]
[1738335900036,0.03179466,237.77,237.73,4.2061]
[1738335900233,0.03179466,237.77,237.72,0.02811412]
[1738335901125,0.03179466,237.77,237.73,4.2061]
[1738335901434,0.03179466,237.77,237.74,11.46829725]
[1738335902130,5.69406417,237.9,237.74,11.46829725]
[1738335902347,5.69406417,237.9,237.81,11.46829725]
[1738335902923,5.69406417,237.9,237.84,11.46829725]
[1738335903135,5.69406417,237.9,237.87,11.46829725]
[1738335903435,5.69406417,237.9,237.89,4.2034]
[1738335904032,10.46559253,237.91,237.89,4.2034]
[1738335904232,45.55251342,237.92,237.91,4.203]
[1738335904434,82.9594845,237.94,237.9,11.46829725]
[1738335904635,82.9594845,237.94,237.93,11.46829725]
[1738335904936,82.9594845,237.94,237.93,15.67099725]
[1738335905338,11.55824184,237.94,237.93,15.67099725]
[1738335905636,4.184e-05,237.94,237.93,15.67099725]
[1738335906541,2.7661,238.05,237.95,4.2023]
[1738335906741,45.97804259,238.08,237.93,18.30246616]
[1738335907032,45.97804259,238.08,237.99,18.30246616]
[1738335907236,45.97804259,238.08,237.97,0.02702608]
[1738335907237,45.97804259,238.08,238.03,18.30246616]
[1738335907636,45.97804259,238.08,238.06,4.2003]
[1738335908038,45.97804259,238.08,238.03,18.33094815]
[1738335908236,45.97804259,238.08,238.03,0.02848199]
[1738335908743,45.97804259,238.08,237.91,18.30246616]
[1738335908944,18.30246616,238.06,237.87,18.30246616]
[1738335909143,18.30246616,238.02,237.86,118.29236667]
[1738335909341,18.30246616,238.02,237.86,116.85086667]
[1738335909537,18.30246616,237.98,237.86,116.85086667]
[1738335909744,2.84,237.99,237.86,116.85086667]
[1738335909937,0.02960117,237.94,237.9,0.0266033]
[1738335910143,4.2029,237.92,237.9,0.0266033]
[1738335911244,4.23220117,237.94,237.9,0.0266033]
[1738335911445,0.02960117,237.94,237.9,0.0266033]
[1738335914647,0.02960117,237.94,237.82,4.2044]